Cogmind - Beta 16 @@@ ROGUE MODE // 2025.12.28 @ 02:54:48 Player: Bity Result: Destroyed by H-77 Assassin with Coil Gun Performance ------------- Evolutions (6) 3000 Regions Visited (9) 1800 Robots Destroyed (80) 400 Value Destroyed (2378) 2378 Prototype IDs (15) 300 Alien Tech Used (0) 0 Bonus (1989) 1989 TOTAL SCORE: 9867 Bonus ------- High Alert Combat Kills 117 Follower Combat Kills 974 Entered Garrisons 200 Registered with UFD 300 Met Optimus in HQ 500 Friendly Fire -102 Cogmind --------- Core Integrity 0/1150 Matter 285/300 Energy 45/100 System Corruption 0% Temperature Cool (0) Movement Core (50) Location -4/Garrison Parts ------- > --- POWER (2) -------- (None) > --- PROPULSION (6) --- (None) > --- UTILITY (7) ------ Graphene Brace Graphene Brace > --- WEAPON (4) ------- (None) > --- INVENTORY (5) ---- Light Antimatter Reactor Energy Well (350) Railgun Peak State ------------ > --- POWER ------------ Particle Reactor Reinforced Quantum Reactor > --- PROPULSION ------- Heavy Treads Biometal Heavy Treads Advanced Heavy Siege Treads > --- UTILITY ---------- Energy Well Damper Plating Improved Hardlight Generator System Shield > --- WEAPON ----------- Enhanced Quantum Rifle Enhanced Quantum Rifle Hardcell Cannon Linear Accelerator > --- INVENTORY -------- Biometal Medium Treads Nuclear Pulse Array Field Propulsion Array [Rating: 138] Favorites ----------- Power Heavy Ion Engine Engine Heavy Ion Engine Power Core Fission Core Reactor Reinforced Quantum Reactor Propulsion Light Treads Treads Light Treads Leg Aluminum Leg Wheel Compact Wheel Hover Unit Improved Antigrav System Flight Unit VTOL Module Utility High-capacity Storage Unit Device Gravity Neutralizer Storage High-capacity Storage Unit Processor Advanced Melee Analysis Suite Hackware Improved Hacking Suite Protection Propulsion Shielding Weapon Grenade Launcher Energy Gun Pulse Rifle Energy Cannon Long-range Proton Cannon Ballistic Gun Heavy Machine Gun Ballistic Cannon Hardcell Cannon Launcher Grenade Launcher Slashing Weapon Chainsword Special Melee Weapon Improved Datajack Build | -11 -10 -10 -8 -6 -5 -4 -4 -4 -4 ------- Run | Yrd Mat Sub Scr Fac Fac Fac Was Fac Gar Slots Evolved 12 | . . . . 8 2 2 . . . Power 1 | . . . . 1 . . . . . Propulsion 4 | . . . . 2 . 2 . . . Utility 5 | . . . . 5 . . . . . Weapon 2 | . . . . . 2 . . . . Parts Attached 128 | 3 11 1 2 43 24 18 15 5 6 Power 22 | . 2 . 1 8 2 4 3 1 1 Engine 8 | . 1 . . 6 . 1 . . . Core 7 | . 1 . 1 2 2 . 1 . . Reactor 7 | . . . . . . 3 2 1 1 Propulsion 36 | 2 2 . . 13 9 5 5 . . Treads 6 | . 2 . . . . . 4 . . Leg 2 | . . . . . 1 . 1 . . Wheel 19 | 2 . . . 12 4 1 . . . Hover 1 | . . . . . . 1 . . . Flight 8 | . . . . 1 4 3 . . . Utility 45 | 1 3 . . 19 6 7 3 2 4 Device 20 | 1 . . . 8 3 4 1 2 1 Storage 8 | . 2 . . . 1 1 1 . 3 Processor 5 | . . . . 5 . . . . . Hackware 2 | . . . . 1 . 1 . . . Protection 10 | . 1 . . 5 2 1 1 . . Artifact . | . . . . . . . . . . Weapon 25 | . 4 1 1 3 7 2 4 2 1 Energy Gun 10 | . . . 1 . 4 1 2 1 1 Energy Cannon 3 | . 1 . . . 1 . 1 . . Ballistic Gun 2 | . . . . 1 . . . 1 . Ballistic Cannon 4 | . . . . 1 1 1 1 . . Launcher 4 | . 3 1 . . . . . . . Special Weapon . | . . . . . . . . . . Impact Weapon . | . . . . . . . . . . Slashing Weapon 1 | . . . . 1 . . . . . Piercing Weapon . | . . . . . . . . . . Special Melee Weapon 1 | . . . . . 1 . . . . Unidentified Prototypes 3 | . 1 . . 2 . . . . . Parts Lost 70 | . . 1 . 15 31 3 . 11 9 Power 13 | . . . . 4 4 2 . 2 1 Propulsion 19 | . . . . 4 9 1 . 3 2 Utility 17 | . . . . 4 8 . . 2 3 Weapon 21 | . . 1 . 3 10 . . 4 3 Highest Loss Streak 16 | . . 1 . 6 16 3 . 11 5 To Critical Strikes . | . . . . . . . . . . Average Backups 15 | 7 17 19 19 18 14 4 3 2 3 Power . | 1 1 1 1 . . . . . 1 Propulsion 2 | 4 4 3 2 2 4 . 2 2 . Utility 6 | . 6 7 9 9 7 3 . . 1 Weapon 4 | 1 5 7 5 4 1 1 . . . Tool/Special . | . . . . . . . . . . Unused Backups 39 | 5 10 . 10 4 7 . . . 3 Power 5 | . 3 . 1 . . . . . 1 Propulsion 11 | 5 1 . 3 . 2 . . . . Utility 9 | . 3 . . . 5 . . . 1 Weapon 13 | . 3 . 6 3 . . . . 1 Tool/Special 1 | . . . . 1 . . . . . Average Slot Usage (%) 90 | . 100 100 97 93 74 54 81 61 26 Engine 5 | . 8 14 5 7 1 2 . . . Core 4 | . 5 . 8 4 3 2 . . . Reactor 1 | . . . . . . 2 8 8 2 Treads 19 | . 26 28 28 1 . . 12 13 . Wheel 4 | . 1 . . 22 17 . . . . Device 5 | . 14 . . 11 10 5 10 4 8 Storage 10 | . 14 14 14 6 5 3 6 4 5 Processor 1 | . . . . 9 9 2 . . . Hackware 2 | . . . . 4 5 8 9 4 . Protection 9 | . . 14 14 9 . . 5 4 . Energy Gun 5 | . 4 . 9 . 5 1 9 8 1 Ballistic Gun 1 | . 6 . . 3 . . . . 2 Ballistic Cannon 1 | . . . . 1 2 3 5 8 . Launcher 11 | . 14 28 16 . 1 . . . . Peak Build Rating 138 | 8 12 11 18 56 67 78 138 138 71 Average Rating 36 | 7 10 10 15 43 47 56 126 124 43 On Entrance 41 | 6 8 11 11 18 53 28 78 138 65 Avg Prop Armor Cover (%) 6 | . . . . 3 9 7 3 . . Naked Turns 6 | . . . . . . . . 6 . Heaviest Build 140 | 13 56 55 57 77 72 31 140 140 28 Greatest Support 237 | 26 40 40 40 70 58 51 237 225 32 Greatest Overweight (x) 5 | . 1 1 1 5 1 1 1 . 2 Average Overweight (x) . | . . 1 1 . . . . . . Largest Inventory Capacity 20 | 8 20 20 20 20 20 5 5 5 5 Average Capacity 16 | 8 19 20 20 20 17 5 5 5 5 Most Carried 20 | 8 20 20 20 20 20 5 5 5 5 Average Carried 16 | 7 17 19 19 19 15 4 4 4 4 Final Capacity 20 | 8 20 20 20 20 5 5 5 5 5 Final Carried 20 | 8 20 20 20 20 5 5 5 4 3 Class Distribution -------------------- 68% | Mutant 13% | Scavenger-Mutant 6% | Hacker-Tank 5% | Tank Dominant Class ---------------- Mutant | -10/Materials Mutant | -10/Subcaves Mutant | -8/Scraptown Scavenger-Mutant | -6/Factory Scavenger-Bomber | -5/Factory Hacker-Sprinter | -4/Factory Hacker-Tank | -4/Waste Tank | -4/Factory Mutant | -4/Garrison Resources | -11 -10 -10 -8 -6 -5 -4 -4 -4 -4 ----------- Run | Yrd Mat Sub Scr Fac Fac Fac Was Fac Gar Matter Collected 3291 | 258 320 78 57 1046 390 . 496 330 316 Remotely . | . . . . . . . . . . Salvage Created 2472 | 169 569 140 . 955 346 . . 226 67 Parts 155 | 20 62 6 . 45 13 . . 7 2 Haulers Intercepted . | . . . . . . . . . . Recyclers Shooed 3 | . 1 . . 1 . . . 1 . Parts Field Recycled 7 | . . . . 7 . . . . . Retrieved Matter 24 | . . . . 24 . . . . . Parts Self-Destructed 5 | . . 5 . . . . . . . Prevented . | . . . . . . . . . . Parts Restored . | . . . . . . . . . . Kills | -11 -10 -10 -8 -6 -5 -4 -4 -4 -4 ------- Run | Yrd Mat Sub Scr Fac Fac Fac Was Fac Gar Combat Hostiles Destroyed 44 | . 14 5 . 10 10 . . 4 1 Melee 5 | . . . . 4 1 . . . . Guns 14 | . 5 . . 3 4 . . 1 1 Cannons 7 | . . . . 3 1 . . 3 . AOE 18 | . 9 5 . . 4 . . . . Classes Destroyed 12 | 3 5 1 . 3 . . . . . Worker 7 | 2 3 . . 2 . . . . . Builder 11 | . 8 . . 2 1 . . . . Tunneler 6 | 4 2 . . . . . . . . Recycler 6 | 1 1 . . 4 . . . . . Operator 2 | . 1 . . 1 . . . . . Watcher 4 | . 2 . . . . . . 2 . Swarmer 9 | . 3 . . 2 4 . . . . Grunt 25 | . 11 . . 4 6 . . 3 1 Duelist 1 | . . . . 1 . . . . . Sentry 1 | . . . . 1 . . . . . Programmer 3 | . . . . 2 . . . 1 . Subdweller 5 | . . 5 . . . . . . . Best Kill Streak 8 | 3 8 3 . 4 4 . . 4 1 Combat Bots Only 4 | . 4 3 . 2 4 . . 3 1 Max Kills in Single Turn 3 | 1 3 2 . 1 1 . . 1 1 Gunslinging . | . . . . . . . . . . Exploded 2 | . 2 2 . . 1 . . . . Melee 1 | . . . . 1 1 . . . . Uniques/NPCs Destroyed . | . . . . . . . . . . Combat | -11 -10 -10 -8 -6 -5 -4 -4 -4 -4 -------- Run | Yrd Mat Sub Scr Fac Fac Fac Was Fac Gar Hostile Shots Fired 779 | . 38 10 . 176 194 19 . 201 141 Missed 228 | . 15 2 . 45 59 12 . 34 61 Hits 551 | . 23 8 . 131 135 7 . 167 80 Melee 6 | . . . . 6 . . . . . Projectile 545 | . 23 8 . 125 135 7 . 167 80 AOE 1 | . . . . . . . . 1 . Critical Strikes 23 | . . . . 6 4 1 . 9 3 Actively Blocked 4 | . . 1 . . . . . . 3 Damage Taken 10120 | . 312 347 . 2008 2557 154 78 3033 1631 Core 2093 | . 73 79 . 286 500 68 . 145 942 Absorbed by Shields 298 | . . . . 276 . . . . 22 Reduced by Siege Mode 43 | . . . . . . . . 43 . Redirected to Shielding 135 | . . 26 . 107 . . 2 . . Ignored by Resistances 163 | . . . . 44 9 33 . 77 . Regen/Repaired (Parts) 960 | . 54 . . 122 . . 563 221 . Core Remaining (%) 63 | 100 . . 39 66 50 . . . . Volleys Fired 222 | 18 54 12 . 50 40 6 4 25 13 Largest 4 | 2 2 2 . 1 3 1 2 4 2 Hottest 239 | 60 86 60 . 63 179 40 130 239 95 Shots Fired 353 | 34 94 22 . 52 63 6 8 59 15 Gun 188 | 34 51 . . 20 30 6 8 24 15 Cannon 98 | . 10 . . 32 21 . . 35 . Launcher 67 | . 33 22 . . 12 . . . . Special . | . . . . . . . . . . Kinetic 157 | 18 29 . . 47 17 . . 35 11 Thermal 95 | 16 22 . . 5 12 6 8 24 2 Explosive 67 | . 33 22 . . 12 . . . . Electromagnetic 34 | . 10 . . . 22 . . . 2 Robot Hit Streak 14 | 5 14 10 . 10 6 3 6 11 3 Robot Miss Streak 7 | 2 6 1 . 6 3 2 4 7 3 Penetration Max . | . . . . . . . . . . Secondary Targets 1 | . 1 . . . . . . . . Max Gunslinging Chain 1 | . 1 . . . . . . . . Shots Hit Robots 239 | 19 47 12 . 75 40 3 6 30 7 Core Hits 159 | 10 54 18 . 31 27 1 1 14 3 Critical Kills . | . . . . . . . . . . Critical Parts Destroyed 1 | 1 . . . . . . . . . Critical Strikes 12 | 1 1 . . 8 . . . 2 . Destroy 1 | 1 . . . . . . . . . Blast 3 | . . . . 1 . . . 2 . Corrupt 1 | . 1 . . . . . . . . Sever 7 | . . . . 7 . . . . . Melee Attacks 81 | . . . . 73 8 . . . . Impact . | . . . . . . . . . . Slashing 78 | . . . . 73 5 . . . . Piercing . | . . . . . . . . . . Sneak Attacks 11 | . . . . 8 3 . . . . Combat Hostiles . | . . . . . . . . . . Follow-up Attacks . | . . . . . . . . . . Damage Inflicted 8938 | 185 1760 1270 . 2583 1389 37 183 1379 152 Guns 2018 | 185 318 . . 329 326 37 183 488 152 Cannons 1896 | . 125 . . 550 367 . . 854 . Explosions 3282 | . 1317 1270 . . 658 . . 37 . Melee 1742 | . . . . 1704 38 . . . . Ramming . | . . . . . . . . . . Kinetic 2265 | 72 148 . . 813 253 . . 854 125 Thermal 1259 | 113 196 . . 66 149 37 183 488 27 Explosive 3256 | . 1291 1270 . . 658 . . 37 . Electromagnetic 416 | . 125 . . . 291 . . . . Impact . | . . . . . . . . . . Slashing 1742 | . . . . 1704 38 . . . . Piercing . | . . . . . . . . . . Highest Corruption 1 | . . . . 1 . . . . . Average Corruption 1 | . . . . 1 . . . . . Corruption Purged . | . . . . . . . . . . Corruption Blocked . | . . . . . . . . . . Effects 12 | . . . . 12 . . . . . Matter Fused 3 | . . . . 3 . . . . . Heat Flow Errors 1 | . . . . 1 . . . . . Energy Discharges 3 | . . . . 3 . . . . . Parts Fused 1 | . . . . 1 . . . . . Data Loss (minor) 2 | . . . . 2 . . . . . Misfires 2 | . . . . 2 . . . . . Overload Shots . | . . . . . . . . . . Overflow Damage 316 | . 32 1 . 172 32 . . 79 . Projectiles 93 | . . . . 14 . . . 79 . Explosions 65 | . 32 1 . . 32 . . . . Melee 158 | . . . . 158 . . . . . Knockbacks 19 | . . . . 11 . . . 8 . Impact . | . . . . . . . . . . Kinetic 18 | . . . . 11 . . . 7 . Secondary 1 | . . . . . . . . 1 . Self-Inflicted Damage 389 | . 74 80 . . 187 . . 48 . Shots 19 | . 5 5 . . 8 . . 1 . Rammed . | . . . . . . . . . . Targets Rammed 2 | . . . . . 2 . . . . Kicked 2 | . . . . . 2 . . . . Crushed . | . . . . . . . . . . Highest Temperature 476 | 40 138 . . 256 476 . 229 472 53 Average Temperature 153 | 22 27 . . 57 212 . 116 255 15 Received Heat Transfer 2133 | . 99 30 . 568 538 18 9 610 261 Effects 30 | . . . . 2 10 . . 18 . Shutdowns 7 | . . . . . 5 . . 2 . Energy Bleed 7 | . . . . . . . . 7 . Interference 11 | . . . . 2 3 . . 6 . Matter Decay 2 | . . . . . 1 . . 1 . Damage (minor) 3 | . . . . . 1 . . 2 . Siege Activations 3 | . . . . . . . . 3 . Total Turns 22 | . . . . . . . . 22 . Longest Duration 12 | . . . . . . . . 12 . Martial Activations . | . . . . . . . . . . Shielding Activations . | . . . . . . . . . . Robots Disrupted . | . . . . . . . . . . Combat Hostiles . | . . . . . . . . . . Robots Corrupted . | . . . . . . . . . . Combat Hostiles . | . . . . . . . . . . Parts Fried . | . . . . . . . . . . Impact Corruptions . | . . . . . . . . . . Robots Melted . | . . . . . . . . . . Combat Hostiles . | . . . . . . . . . . Parts Melted . | . . . . . . . . . . Heat Transferred 2081 | 250 425 . . 148 296 111 222 592 37 Parts Sabotaged . | . . . . . . . . . . Parts Stolen . | . . . . . . . . . . Parts Stripped . | . . . . . . . . . . Power Chain Reactions 1 | . 1 . . . . . . . . Alert | -11 -10 -10 -8 -6 -5 -4 -4 -4 -4 ------- Run | Yrd Mat Sub Scr Fac Fac Fac Was Fac Gar Maximum Alert Level 3 | . 1 . . . . . . 3 3 Low Security (%) 78 | 100 56 . . 100 100 100 100 28 . Level 1 12 | . 43 . . . . . . 27 . Level 2 3 | . . . . . . . . 14 41 Level 3 5 | . . . . . . . . 30 58 Level 4 . | . . . . . . . . . . Level 5 . | . . . . . . . . . . High Security . | . . . . . . . . . . Max Security . | . . . . . . . . . . Peak Influence 1030 | 10 337 . . 143 95 93 48 1030 725 Initial 671 | . . . . . 68 46 20 . 671 Average 123 | 2 153 . . 35 50 39 3 423 696 Influence Increases 3627 | 35 717 . . 576 508 118 64 1485 124 Destroy 0b10 Robot/C 1140 | . 280 . . 200 200 . . 440 20 Destroy 0b10 Robot/NC 215 | 35 85 . . 45 5 . . 45 . Destroy Leader 244 | . 84 . . 60 30 . . 70 . Allied During Kill 366 | . . . . . . . . 366 . Successful Hack 148 | . 17 . . 31 24 43 . 19 14 Disable Machine 270 | . 105 . . 15 . . . 150 . Destroy Structure 629 | . 131 . . 30 114 . 64 290 . Partial Spotted 60 | . . . . . 15 15 . 15 15 Lose Combat Pursuer 555 | . 15 . . 195 120 60 . 90 75 Influence Decreases 2922 | 35 439 278 . 436 553 155 122 526 378 Entered New Map 581 | . . 134 . . 72 49 38 . 288 Time Decay 1565 | 35 429 144 . 337 214 106 84 216 . Lost Part 566 | . . . . 99 267 . . 110 90 Lost Ally 210 | . 10 . . . . . . 200 . Squads Dispatched 28 | . 4 . . 8 5 3 . 8 . Investigation 10 | . 2 . . 2 2 2 . 2 . Extermination 4 | . . . . 3 1 . . . . Reinforcement 11 | . 2 . . 3 2 1 . 3 . Assault 2 | . . . . . . . . 2 . Garrison 1 | . . . . . . . . 1 . Intercept . | . . . . . . . . . . Searches Triggered . | . . . . . . . . . . Construction Impeded 2 | . . . . . 1 . . 1 . Haulers Reinforced 1 | . . . . . . . . 1 . Active Scanning Responses . | . . . . . . . . . . Cargo Convoy Interrupts . | . . . . . . . . . . Stealth | -11 -10 -10 -8 -6 -5 -4 -4 -4 -4 --------- Run | Yrd Mat Sub Scr Fac Fac Fac Was Fac Gar Distress Signals 6 | . . . . 2 . 2 . 2 . Communications Jammed . | . . . . . . . . . . Distress Signals . | . . . . . . . . . . Times Spotted 147 | . 28 7 . 26 27 10 5 33 11 Peak Tracking Total 9 | . 3 2 . 7 6 6 3 9 5 Tactical Retreats 20 | . 1 2 . 8 3 1 . 2 3 Traps | -11 -10 -10 -8 -6 -5 -4 -4 -4 -4 ------- Run | Yrd Mat Sub Scr Fac Fac Fac Was Fac Gar Traps Triggered 11 | . 1 2 . 2 . 4 . 1 1 Indirectly . | . . . . . . . . . . Trap Hack Attempts . | . . . . . . . . . . Triggered . | . . . . . . . . . . Disarmed . | . . . . . . . . . . Reprogrammed . | . . . . . . . . . . Reused . | . . . . . . . . . . Traps Extracted . | . . . . . . . . . . Installed . | . . . . . . . . . . Triggered . | . . . . . . . . . . Machines | -11 -10 -10 -8 -6 -5 -4 -4 -4 -4 ---------- Run | Yrd Mat Sub Scr Fac Fac Fac Was Fac Gar Machines Disabled 18 | . 7 . . 1 . . . 10 . Max in Single Turn 2 | . 2 . . 1 . . . 1 . Machines Repaired . | . . . . . . . . . . Machines Dismantled . | . . . . . . . . . . Machines Sabotaged . | . . . . . . . . . . Overloaded Fab Kills . | . . . . . . . . . . Hacking | -11 -10 -10 -8 -6 -5 -4 -4 -4 -4 --------- Run | Yrd Mat Sub Scr Fac Fac Fac Was Fac Gar Machines Accessed 36 | . 7 . 6 12 2 3 . 5 1 Terminals 16 | . 5 . . 6 1 2 . 1 1 Fabricators 2 | . . . . 2 . . . . . Repair Stations 4 | . 1 . . 2 1 . . . . Recycling Units 4 | . 1 . . 1 . . . 2 . Scanalyzers 3 | . . . . 1 . 1 . 1 . Garrison Access 1 | . . . . . . . . 1 . Total Hacks 115 | . 20 . 41 24 6 9 . 13 2 Successful 89 | . 12 . 41 16 4 4 . 11 1 Failed 26 | . 8 . . 8 2 5 . 2 1 Catastrophic 4 | . . . . 1 1 2 . . . Database Lockouts . | . . . . . . . . . . Manual 34 | . 15 . . 6 5 3 . 5 . Terminals 45 | . 17 . . 13 3 6 . 4 2 Fabricators 3 | . . . . 3 . . . . . Repair Stations 8 | . 2 . . 3 3 . . . . Recycling Units 5 | . 1 . . 1 . . . 3 . Scanalyzers 12 | . . . . 4 . 3 . 5 . Garrison Access 1 | . . . . . . . . 1 . Terminal Hacks 53 | . 3 . 41 3 1 2 . 2 1 Record 36 | . . . 34 1 . 1 . . . Robot Analysis 6 | . . . 6 . . . . . . Open Door 1 | . . . . 1 . . . . . Emergency Access Points 2 | . 1 . . . . 1 . . . Garrison Index 1 | . . . . 1 . . . . . Maintenance Status 1 | . 1 . . . . . . . . Registered Components 1 | . . . . . . . . 1 . Zone Layout 3 | . 1 . . . 1 . . 1 . Patrol Navigation 1 | . . . . . . . . . 1 Proto ID Catalog 1 | . . . 1 . . . . . . Fabricator Hacks 2 | . . . . 2 . . . . . Network Status 2 | . . . . 2 . . . . . Repair Station Hacks 5 | . 2 . . 2 1 . . . . Scan Component 2 | . 1 . . 1 . . . . . Repair 2 | . 1 . . 1 . . . . . Refit 1 | . . . . . 1 . . . . Recycling Unit Hacks 3 | . 1 . . 1 . . . 1 . Report Inventory 3 | . 1 . . 1 . . . 1 . Scanalyzer 7 | . . . . 3 . . . 4 . Retrieve Study 7 | . . . . 3 . . . 4 . Garrison Access Hacks 1 | . . . . . . . . 1 . Unlock Access 1 | . . . . . . . . 1 . Unauthorized Hacks 18 | . 6 . . 5 2 2 . 3 . Terminals 14 | . 6 . . 4 1 2 . 1 . Assimilate 3 | . 2 . . 1 . . . . . Botnet 9 | . 2 . . 3 1 2 . 1 . Operators 2 | . 2 . . . . . . . . Fabricators . | . . . . . . . . . . Repair Stations 2 | . . . . 1 1 . . . . Patch 2 | . . . . 1 1 . . . . Recycling Units 2 | . . . . . . . . 2 . Fedlink 2 | . . . . . . . . 2 . Scanalyzers . | . . . . . . . . . . Garrison Access . | . . . . . . . . . . Data Cores Recovered 1 | . . . . 1 . . . . . Used 1 | . . . . 1 . . . . . Hacking Detections 20 | . 6 . . 7 2 3 . 1 1 Full Trace Events 5 | . 2 . . . 1 2 . . . Feedback Events . | . . . . . . . . . . Feedback Blocked . | . . . . . . . . . . Robot Schematics Acquired . | . . . . . . . . . . Robots Built . | . . . . . . . . . . Authchips . | . . . . . . . . . . Time . | . . . . . . . . . . Total Robot Build Rating . | . . . . . . . . . . Part Schematics Acquired . | . . . . . . . . . . Parts Built . | . . . . . . . . . . Authchips . | . . . . . . . . . . Time . | . . . . . . . . . . Total Part Build Rating . | . . . . . . . . . . Part Studies Acquired 6 | . . . . 3 . . . 3 . Parts Repaired 2 | . 1 . . 1 . . . . . Time 52 | . 26 . . 26 . . . . . Parts Recycled . | . . . . . . . . . . Recycled Matter . | . . . . . . . . . . Retrieved Matter . | . . . . . . . . . . Retrieved Components . | . . . . . . . . . . Parts Scanalyzed . | . . . . . . . . . . Part Schematics Acquired . | . . . . . . . . . . Parts Damaged . | . . . . . . . . . . Bothacking | -11 -10 -10 -8 -6 -5 -4 -4 -4 -4 ------------ Run | Yrd Mat Sub Scr Fac Fac Fac Was Fac Gar Used RIF Installer . | . . . . . . . . . . Robots Hacked 1 | . . . . . 1 . . . . Non-combat 1 | . . . . . 1 . . . . Combat . | . . . . . . . . . . Robot Hacks Applied 3 | . . . . . 3 . . . . parse_system 1 | . . . . . 1 . . . . no_distress 1 | . . . . . 1 . . . . find_recycling 1 | . . . . . 1 . . . . Relay Couplers Released . | . . . . . . . . . . Fabnet Peak Effective % . | . . . . . . . . . . Robots Rewired . | . . . . . . . . . . Allies Hacked 2 | . . . . . . . . 2 . Hacks Repelled 1 | . . . . . . . . 1 . Allies | -11 -10 -10 -8 -6 -5 -4 -4 -4 -4 -------- Run | Yrd Mat Sub Scr Fac Fac Fac Was Fac Gar Total Allies 20 | . 1 . . . . . 19 . . Largest Group 19 | . 1 . . . . . 19 13 . Highest-Rated Group 684 | . 10 . . . . . 684 526 . Highest-Rated Ally 50 | . 10 . . . . . 50 50 . Total Orders . | . . . . . . . . . . Ally Attacks 264 | . . . . . . . 148 116 . Total Damage 8548 | . . . . . . . 4357 4191 . Kills 36 | . . . . . . . 9 27 . Allies Corrupted . | . . . . . . . . . . Allies Melted . | . . . . . . . . . . Intel | -11 -10 -10 -8 -6 -5 -4 -4 -4 -4 ------- Run | Yrd Mat Sub Scr Fac Fac Fac Was Fac Gar Active Infowar (turns) 3285 | 139 1466 . . 1374 306 . . . . Optics 843 | . . . . 537 306 . . . . Structural 308 | . . . . 308 . . . . . Seismic 1605 | 139 1466 . . . . . . . . Decoding 833 | . . . . 833 . . . . . Cloaking 167 | . . . . . 167 . . . . Robot Analysis Total 6 | . . . 6 . . . . . . Derelict Logs Recovered 4 | . . 2 2 . . . . . . Drone Launches . | . . . . . . . . . . Drone Recoveries . | . . . . . . . . . . Decoded 0b10 Intel 19 | . . . . 19 . . . . . Patrols 9 | . . . . 9 . . . . . Reinforcements 4 | . . . . 4 . . . . . Guards 6 | . . . . 6 . . . . . Exploration | -11 -10 -10 -8 -6 -5 -4 -4 -4 -4 ------------- Run | Yrd Mat Sub Scr Fac Fac Fac Was Fac Gar Turns Passed 12220 | 183 1468 1278 4697 1913 456 271 1078 625 251 Spaces Moved 6620 | 111 551 487 1951 1265 340 471 684 431 329 Core 152 | . . . . . . . . 9 143 Treads 3826 | . 491 487 1951 75 . . 532 290 . Legs 72 | 72 . . . . . . . . . Wheels 1491 | 39 60 . . 1190 202 . . . . Hover 60 | . . . . . . 60 . . . Flight 1019 | . . . . . 138 411 152 132 186 Fastest Speed 27 | 90 90 240 240 80 29 27 29 37 37 Average Speed 158 | 109 224 240 240 105 68 33 127 116 48 Slowest Speed 240 | 120 240 240 240 240 100 120 225 155 150 Overloaded Moves . | . . . . . . . . . . Propulsion Burnouts . | . . . . . . . . . . Robots Hopped 8 | . . . . . . 6 . 1 1 Potential Cave-ins 2 | . . . . . 2 . . . . Cave-ins Triggered . | . . . . . . . . . . Exploration Rate (%) 38 | 6 80 28 88 25 6 10 96 12 32 Regions Visited 9 Branch Regions 2 Pre-discovered Areas 3 | . . 2 . . . . . 1 . Known Exits Taken 1 | . . . . . . . . 1 . Unknown Exits Taken 6 | 1 1 1 1 1 1 . . . . Scrap Searched 1 | . . . 1 . . . . . . Spaces Dug 96 | . 15 15 . 29 4 . . 33 . Terrain Destroyed 389 | . 150 96 . 30 72 . 1 40 . Melee 32 | . . . . 29 3 . . . . Projectile 22 | . . . . 1 7 . 1 13 . AOE 335 | . 150 96 . . 62 . . 27 . Terrain Rammed . | . . . . . . . . . . Walls Destroyed . | . . . . . . . . . . Machines Disabled . | . . . . . . . . . . Actions | -11 -10 -10 -8 -6 -5 -4 -4 -4 -4 --------- Run | Yrd Mat Sub Scr Fac Fac Fac Was Fac Gar Total 7953 | 146 694 573 1978 1694 498 573 886 506 405 Wait 656 | 5 54 69 1 197 53 48 151 37 41 Move 6596 | 110 550 486 1950 1264 339 459 683 429 326 Hop 8 | . . . . . . 6 . 1 1 Pick Up 91 | 5 18 3 11 28 13 2 5 3 3 Fast Attach 53 | 1 . . 1 8 7 17 11 5 3 Attach 51 | . . 1 . 16 19 5 3 4 3 Detach 11 | . . . . . 2 6 1 1 1 Swap 60 | 3 11 . 1 31 2 2 9 1 . Drop 101 | 4 7 2 14 27 13 13 19 . 2 Fire 222 | 18 54 12 . 50 40 6 4 25 13 Melee 81 | . . . . 73 8 . . . . Ram . | . . . . . . . . . . Kick 2 | . . . . . 2 . . . . Crush . | . . . . . . . . . . Escape Stasis 21 | . . . . . . 9 . . 12 Rewire . | . . . . . . . . . . Trap . | . . . . . . . . . . Miscellaneous . | . . . . . . . . . . Route ------- -11/Scrapyard -10/Materials (discovered 4 exits: [*Mat x2] / [*Min] / [*Sub]) -10/Subcaves -8/Scraptown (discovered 2 exits: *Fac x2) -6/Factory (discovered 2 exits: *Fac / *Ext) -5/Factory -4/Factory -4/Waste -4/Factory -4/Garrison (discovered 1 exit: [*Res]) History --------- Turn | Location | Event 1 | -11/Scrapyard | Discovered new exit (range 3) 184 | -11/Scrapyard | Entered Materials 302 | -10/Materials | Build established: Mutant 586 | -10/Materials | Discovered new exit (range 16) 652 | -10/Materials | Discovered new exit (range 15) 1183 | -10/Materials | Discovered new exit (range 11) 1311 | -10/Materials | Discovered new exit (range 11) 1429 | -10/Materials | Repaired Grenade Launcher 1652 | -10/Materials | Entered Subcaves 1653 | -10/Subcaves | Approached by a straggling Scientist 1759 | -10/Subcaves | Scientist uncovered a shortcut to Scraptown 1766 | -10/Subcaves | Learned location of Storage (-8) 1967 | -10/Subcaves | Ambushed by Subdweller buried in earth 2038 | -10/Subcaves | Shifting Twisted Machinery released Riot Gun 2327 | -10/Subcaves | Learned location of Zion (-6) 2467 | -10/Subcaves | Core integrity fell below 50% 2469 | -10/Subcaves | Ambushed by Subdweller buried in earth 2930 | -10/Subcaves | Entered Scraptown 3370 | -8/Scraptown | Heard Great Nut preacher, LISTEN AND RECITE! 3377 | -8/Scraptown | Visited Assassins FH 3432 | -8/Scraptown | Visited Cyclists 3514 | -8/Scraptown | Scanned Subdweller tech in exchange for log data 3521 | -8/Scraptown | Learned Research garrison access intel 3523 | -8/Scraptown | Learned 12 Research zone layouts 4050 | -8/Scraptown | Discovered new exit (range 11) 4180 | -8/Scraptown | Visited SPCMW 4249 | -8/Scraptown | Visited UFD Registry 4249 | -8/Scraptown | Registered with UFD as "Beamnade" 4288 | -8/Scraptown | Visited Junk Repository 4398 | -8/Scraptown | Visited Fellowship of the Rings 4458 | -8/Scraptown | Visited Red Mages 5041 | -8/Scraptown | Visited Cartography Club 5080 | -8/Scraptown | Visited LU-1G1's Boring Crew 5130 | -8/Scraptown | Visited Chapter 10 5164 | -8/Scraptown | Visited Science Testing Area 5190 | -8/Scraptown | Visited Scrapoid Pod Storage 5226 | -8/Scraptown | Visited Supply Room 5320 | -8/Scraptown | Visited Analyses Database 5368 | -8/Scraptown | Visited Infowarlord's Domain 5427 | -8/Scraptown | Visited Curators Association 5487 | -8/Scraptown | Visited Science Guys 6203 | -8/Scraptown | Found Scrap Suit 7452 | -8/Scraptown | Met Optimus 7452 | -8/Scraptown | Accepted into 0bPrime 7618 | -8/Scraptown | Discovered new exit (range 3) 7627 | -8/Scraptown | Entered Factory 7627 | -6/Factory | Evolved 8 slots: Power x1, Propulsion x2, Utility x5 7863 | -6/Factory | Lost 6 parts (1p2n1u2w) 8191 | -6/Factory | Build established: Scavenger-Mutant 8232 | -6/Factory | Discovered new exit (range 6) 8238 | -6/Factory | Identified exit to Extension 8509 | -6/Factory | Lost 4 parts (1p1n1u1w) 8880 | -6/Factory | Lost 4 parts (2p1n1u) 9074 | -6/Factory | Discovered new exit (range 21) 9118 | -6/Factory | Repaired Lgt. Ion Engine 9540 | -6/Factory | Entered another Factory area 9540 | -5/Factory | Evolved 2 slots: Weapon x2 9628 | -5/Factory | Lost 5 parts (2p1u2w) 9894 | -5/Factory | Lost 16 parts (2p5n4u5w) 9964 | -5/Factory | Discovered new exit (range 13) 9979 | -5/Factory | Lost 10 parts (4n3u3w) 9996 | -5/Factory | Entered another Factory area 9996 | -4/Factory | Evolved 2 slots: Propulsion x2 10154 | -4/Factory | Lost 3 parts (2p1n) 10267 | -4/Factory | Sucked down chute 10267 | -4/Factory | Entered Waste 10281 | -4/Waste | Warlord forces began an assault 10332 | -4/Waste | Spotted C-40 Crusher 10336 | -4/Waste | Spotted C-40 Crusher 10346 | -4/Waste | Allies destroyed C-40 Crusher 10347 | -4/Waste | Spotted C-40 Crusher 10352 | -4/Waste | Allies destroyed C-40 Crusher 10354 | -4/Waste | Spotted C-40 Crusher 10358 | -4/Waste | Allies destroyed C-40 Crusher 10361 | -4/Waste | Spotted C-40 Crusher 10365 | -4/Waste | Allies destroyed C-40 Crusher 10367 | -4/Waste | Allies destroyed C-40 Crusher 10397 | -4/Waste | Spotted C-40 Crusher 10403 | -4/Waste | Allies destroyed C-40 Crusher 10685 | -4/Waste | Build established: Hacker-Tank 10768 | -4/Waste | Discovered new exit (range 12) 10809 | -4/Waste | Found Broken Adv. Force Booster 11221 | -4/Waste | Found Damper Plating 11345 | -4/Waste | Entered Factory 11345 | -4/Factory | Accompanied by 13 allies 11501 | -4/Factory | Spotted B-86 Titan 11504 | -4/Factory | Garrison activated, responded to threat 11507 | -4/Factory | Allies destroyed B-86 Titan 11508 | -4/Factory | Build established: Tank 11612 | -4/Factory | Loaded intel: 8 recycling unit locations 11788 | -4/Factory | Lost 6 allies 11821 | -4/Factory | Learned location of Protoforge (-2) 11845 | -4/Factory | First assault squad dispatched 11902 | -4/Factory | Released all parts (3) 11907 | -4/Factory | Lost 5 allies 11930 | -4/Factory | Lost 11 parts (2p3n2u4w) 11947 | -4/Factory | Found Quantum Capacitor 11970 | -4/Factory | Identified exit to Garrison 11970 | -4/Factory | Entered Garrison 11991 | -4/Garrison | Spotted B-86 Titan 12058 | -4/Garrison | Triggered checkpoint 12118 | -4/Garrison | Core integrity fell below 50% 12130 | -4/Garrison | Triggered checkpoint 12148 | -4/Garrison | Lost 5 parts (1p2n1u1w) 12180 | -4/Garrison | Build established: Mutant 12192 | -4/Garrison | Discovered new exit (range 10) 12197 | -4/Garrison | Attempted to access garrison exit controls, blocked by remote lockdown 12212 | -4/Garrison | Core integrity fell below 20% 12221 | -4/Garrison | Destroyed by H-77 Assassin with Coil Gun Last Messages --------------- 12192_ Slug penetrates Wall. 12192_ EXIT=FOUND 12196_ Slug penetrates Wall. 12197_ Attempting to access garrison exit controls... 12197_ Remote lockdown engaged. 12214_ Slug penetrates Wall. 12215_ Penetrated by Slug. 12215_ Slug penetrates Wall. 12217_ Penetrated by Slug. 12217_ Slug penetrates Wall. 12217_ Penetrated by Slug. 12218_ Slug penetrates Wall. 12220_ Penetrated by Slug. 12220_ Slug penetrates Wall. 12220_ Dispersion Rifle destroyed. 12221_ Wall collapses. 12221_ Penetrated by Slug. 12221_ Slug penetrates Wall. 12221_ Penetrated by Slug. Map ----- +----------------------------------------------------+ | ???????????????????????????????????????# | | ???????????????????????????????????????# | | ???????????????????????????????????????### ## | | ???????????????????????################### ## | | ???????????????????????# | | ???????????????????????# | | ???????????????????????# | | ???????????????????????# ################ ##""" | | ???????????????????????# #????#######???# #???? | | ???????????????????????# #????#!! [[#???# #???? | | ???????????????????????# #????#!! [#???? #???? | | ?????????????????# ##### ########+####### #???? | | ?????????????????# " #???? | | ?????????????????####### ########+####### #???? | | ???????????????????????# #????#[[ !#???? #???? | | ???????????????????????# #????#[ !!!#???? #???? | | ???????????????????????# #????#######???? #???? | | ???????????????????????# #???????????????? #???? | | ???????????????????????# #???????????????? ????? | | ???????????????????????# #?????????????????????? | | ???????????????????????# #?????????????????????? | | ???????????????????????# h#?????????????????????? | | ???????????????????????# #?????????????????????? | | ???????????????????????# #?????????????????????? | | ???????????????????????# #?????????????????????? | | ???????????????????????# @g#?????????????????????? | | ???????????????????????# #?????????????????????? | | ???????????????????????# #?????????????????????? | | ???????????????????????# #?????????????????????? | | ??????????????????????## #?????????????????????? | | ??????????????????????# #?????????????????????? | | ??????????????????????## #?????????????????????? | | ???????????????????????# #?????????????????????? | | ???????????????????????# ;?????????????????????? | | ???????????????????????# h?????????????????????? | | ???????????????????????# ##????????????????????? | | ???????????????????????# #?????????????????????? | | ?????????????????????###Y #?????????????????????? | | ?????????????????????# #?????????????????????? | | ?????????????????????# < #?????????????????????? | | ?????????????????????# #?????????????????????? | | ?????????????????????#######?????????????????????? | | ?????????????????????????????????????????????????? | | ?????????????????????????????????????????????????? | | ?????????????????????????????????????????????????? | | ?????????????????????????????????????????????????? | | ?????????????????????????????????????????????????? | | ?????????????????????????????????????????????????? | | ?????????????????????????????????????????????????? | | ?????????????????????????????????????????????????? | +----------------------------------------------------+ Best States ------------- Heat Dissipation 59 Energy Generation 43 Energy Capacity 1120 Matter Stores 619 Matter Capacity 750 Sight Range 22 Terrain Scan Density 10 Cloak Strength 2 Power Amplification 20 Additional Mass Support 12 Armor Coverage 3200 Resistance: TH 30 Resistance: EM 90 Core Shielding 20 Propulsion Shielding 33 Evasion (%) 64 Melee Accuracy 8 Recoil Reduction 6 Force Boost 40 Offensive Hacking 12 Defensive Hacking 10 Item Schematics ----------------- None Robot Schematics ------------------ None Fabricated ------------ Nothing Repaired ---------- Grenade Launcher | 10% | -10/Materials Lgt. Ion Engine | 15% | -6/Factory Studied --------- Com. Wheel | -6/Factory | Hacked Wheel | -6/Factory | Hacked Chainsword | -6/Factory | Hacked Hardcell Cannon | -4/Factory | Hacked Field Propulsion Array | -4/Factory | Hacked Nuclear Pulse Array | -4/Factory | Hacked Alien Tech Used ----------------- None Achievements -------------- I Laugh At Your Crits Immobile And Lovin' It Turtlemind Challenges ------------ None Game ------ Seed SpacefoldPropulsionLegs Manual? 0 Play Time 01:35:23 Cumulative 42.3 hours Start 2025.12.28 @ 01:18:44 End 2025.12.28 @ 02:54:48 Sessions 1 Manual Loads 0 Difficulty Rogue Special Mode None Game No. 58 Rogue 58 Adventurer 0 Explorer 0 Win Type - Total 1 Types 1/0/0/0/0/0/0/0/0/0 Lore% 34 Gallery% 42 Achievement% 33 Wizard Run 0 Options --------- Layout 2 ASCII 0 Keyboard 1 Movement Numpad Keybinds 0 Fullscreen 1 Font 24/Smallcaps Map View 50x44 Zoom Use 0% Tactical HUD 1 Map Filters NONE Filters NONE Steam 1 RUN: 66047d74-1809-4e94-83d9-7631dc0fb74c